Workbook

Sheet CALCULADORA
B3: RELACIÓN LABORAL | G3: TOTAL RECORTES SALARIALES 2010-2015 | H3: =E10+E11+E12+E13+E15+E18+E20+H10+H11+H12+H14+H18+H20 -> 0
N4: 1 | O4: =IF(N4=1,1,0) -> 1
N5: 1 | O5: =IF(N4=2,1,0) -> 0
O6: =O4+O5 -> 1
B7: CATEGORÍA (anterior denominación) | C7: IMPORTE DE LOS RECORTES SALARIALES 2010-2015 AL PERSONAL LABORAL DE LOS CENTROS DOCENTES DE LA JUNTA DE ANDALUCÍA POR CADA CONCEPTO RETRIBUTIVO | S7: Recorte comp de puesto 01/6/10 - 31/12/15
N8: FALSE | O8: =IF(N8,"1","0") -> 0 | S8: 17.66 | T8: 51.226 | U8: =O8*((67*$O$4*S8)+(25*$O$4*S8)+(42*$O$5*T8)) -> 0 | V8: 335.66 | W8: =V8-(V8*10/100) -> 302.094 | X8: =$O$4*O8*V8+$O$5*O8*W8 -> 0
N9: FALSE | O9: =IF(N9,"1","0") -> 0 | S9: 31.6 | T9: 91.651 | U9: =O9*((67*$O$4*S9)+(25*$O$4*S9)+(42*$O$5*T9)) -> 0 | V9: 600.51 | W9: =V9-(V9*10/100) -> 540.459 | X9: =$O$4*O9*V9+$O$5*O9*W9 -> 0
D10: Sueldo base | E10: =O8*((O4*Hoja2!L19*67)+(O5*25*Hoja2!L19)+(O5*42*Hoja2!O19))+(P12*((O4*67*Hoja2!L20)+(O5*25*Hoja2!L20)+(O5*42*(Hoja2!O20))))+(P17*((O4*67*Hoja2!L21)+(O5*25*Hoja2!L21)+(O5*42*Hoja2!O21)))+(P19*((O4*67*Hoja2!L22)+(O5*25*Hoja2!L22)+(O5*42*Hoja2!O22)))+(P22*((O4*67*Hoja2!L23)+(O5*25*Hoja2!L23)+(O5*42*Hoja2!O23))) -> 0 | H10: =(O4*R10*(O8*Hoja2!E3+P12*Hoja2!E3+P17*Hoja2!E4+P19*Hoja2!E4+P22*Hoja2!E4))+(O5*R10*(O8*Hoja2!I3+P12*Hoja2!I3+P17*Hoja2!I4+P19*Hoja2!I4+P22*Hoja2!I4)) -> 0 | N10: FALSE | O10: 0 | Q10: FALSE | R10: =IF(Q10,"1","0") -> 0 | S10: 16.58 | T10: 48.082 | U10: 0 | V10: 315.02 | W10: 283.518 | X10: 0
D11: Complemento categoría | E11: =O8*((O4*Hoja2!M19*67)+(O5*25*Hoja2!M19)+(O5*42*Hoja2!P19))+(P12*((O4*67*Hoja2!M20)+(O5*25*Hoja2!M20)+(O5*42*(Hoja2!P20))))+(P17*((O4*67*Hoja2!M21)+(O5*25*Hoja2!M21)+(O5*42*Hoja2!P21)))+(P19*((O4*67*Hoja2!M22)+(O5*25*Hoja2!M22)+(O5*42*Hoja2!P22)))+(P22*((O4*67*Hoja2!M23)+(O5*25*Hoja2!M23)+(O5*42*Hoja2!P23))) -> 0 | H11: =O4*R11*(O8*Hoja2!E7+P12*Hoja2!E7+P17*Hoja2!E8+P19*Hoja2!E8+P22*Hoja2!E8)+O5*R11*(O8*Hoja2!I7+P12*Hoja2!I7+P17*Hoja2!I8+P19*Hoja2!I8+P22*Hoja2!I8) -> 0 | N11: FALSE | O11: 0 | Q11: FALSE | R11: 0 | S11: 12.73 | T11: 36.93 | U11: 0 | V11: 242 | W11: 217.8 | X11: 0
D12: Complemento convenio | E12: =O8*((O4*Hoja2!N19*67)+(O5*25*Hoja2!N19)+(O5*42*Hoja2!Q19))+(P12*((O4*67*Hoja2!N20)+(O5*25*Hoja2!N20)+(O5*42*(Hoja2!Q20))))+(P17*((O4*67*Hoja2!N21)+(Q5*25*Hoja2!N21)+(O5*42*Hoja2!Q21)))+(P19*((O4*67*Hoja2!N22)+(O5*25*Hoja2!N22)+(O5*42*Hoja2!Q22)))+(P22*((O4*67*Hoja2!N23)+(O5*25*Hoja2!N23)+(O5*42*Hoja2!Q23))) -> 0 | H12: =O4*R12*(O8*Hoja2!E7+P12*Hoja2!E7+P17*Hoja2!E8+P19*Hoja2!E8+P22*Hoja2!E8)+O5*R12*(O8*Hoja2!I7+P12*Hoja2!I7+P17*Hoja2!I8+P19*Hoja2!I8+P22*Hoja2!I8) -> 0 | N12: FALSE | O12: 0 | P12: =O9+O10+O11+O12 -> 0 | Q12: FALSE | R12: 0 | S12: 11.5 | T12: 33.352 | U12: 0 | V12: 218.52 | W12: 196.668 | X12: 0
D13: Complemento puesto | E13: =U24 -> 0 | N13: FALSE | O13: 0 | S13: 10.74 | T13: 31.159 | U13: 0 | V13: 204.19 | W13: 183.771 | X13: 0
H14: =(O4*R14*(O8*Hoja2!E19+P12*Hoja2!E20+P17*Hoja2!E21+P19*Hoja2!E22+P22*Hoja2!E23))+(O5*R14*(O8*Hoja2!I19+P12*Hoja2!I20+P17*Hoja2!I21+P19*Hoja2!I22+P22*Hoja2!I23)) -> 0 | N14: FALSE | O14: 0 | Q14: FALSE | R14: 0 | S14: 11.96 | T14: 34.697 | U14: 0 | V14: 227.37 | W14: 204.633 | X14: 0
D15: Pagas extra (y adicionales) | E15: =O4*((10*X40)+(6*U42))+O5*(4*(X40+U42)+6*(X40+U42))+O4*(X32+X24+R30)+O5*(X32+X24+R30)+4*(O4*(X48+X24)+O5*(X48+X24)) -> 0 | N15: FALSE | O15: 0 | S15: 11.49 | T15: 33.331 | U15: 0 | V15: 218.41 | W15: 196.569 | X15: 0
N16: FALSE | O16: 0 | Q16: FALSE | R16: 0 | S16: 11.96 | T16: 34.697 | U16: 0 | V16: 227.37 | W16: 204.633 | X16: 0
C17: Nº de trienios | F17: Nº aprox. de horas nocturnas realizadas | N17: FALSE | O17: 0 | P17: =O13+O14+O15+O16+O17 -> 0 | S17: 11.26 | T17: 32.67 | U17: 0 | V17: 214.1 | W17: 192.69 | X17: 0
C18: 12 | D18: Trienios a 01/06/2010 | E18: =O4*C18*25*(O8*P32+P12*P32+P17*P33+P19*P34+P22*P34)+O5*C18*25*(O8*P32+P12*P32+P17*P33+P19*P34+P22*P34) -> 0 | G18: Complem. nocturnidad | H18: =O4*F18*(O8*Hoja2!B11+P12*Hoja2!B11+P17*Hoja2!B12+P19*Hoja2!B12+P22*Hoja2!B12)+O5*F18*(O8*Hoja2!H11+P12*Hoja2!H11+P17*Hoja2!H12+P19*Hoja2!H12+P22*Hoja2!H12) -> 0 | N18: FALSE | O18: 0 | S18: 9.47 | T18: 27.48 | U18: 0 | V18: 180.1 | W18: 162.09 | X18: 0
F19: Nº aprox. de domingos o festivos realizados | N19: FALSE | O19: 0 | P19: =O18+O19+O20 -> 0 | S19: 9.22 | T19: 26.755 | U19: 0 | V19: 175.35 | W19: 157.815 | X19: 0
D20: Trienios a 01/07/2012 | E20: =C20*R35 -> 0 | G20: Compl.domingos y festivos | H20: =O4*F20*(O8*Hoja2!B15+P12*Hoja2!B15+P17*Hoja2!B16+P19*Hoja2!B16+P22*Hoja2!B16)+O5*R16*(O8*Hoja2!H15+P12*Hoja2!H15+P17*Hoja2!H16+P19*Hoja2!H16+P22*Hoja2!H16) -> 0 | N20: FALSE | O20: 0 | S20: 11.06 | T20: 32.082 | U20: 0 | V20: 210.22 | W20: 189.198 | X20: 0
N21: FALSE | O21: 0 | S21: 8.83 | T21: 25.607 | U21: 0 | V21: 167.77 | W21: 150.993 | X21: 0
N22: FALSE | O22: 0 | P22: =O21+O22+O23 -> 0 | S22: 8.62 | T22: 25.015 | U22: 0 | V22: 163.95 | W22: 147.555 | X22: 0
N23: FALSE | O23: 0 | S23: 7.85 | T23: 22.78 | U23: 0 | V23: 149.3 | W23: 134.37 | X23: 0
O24: =O8+O9+O10+O11+O12+O13+O14+O15+O16+O17+O18+O19+O20+O21+O22+O23 -> 0 | U24: =SUM(U8:U23) -> 0 | X24: =SUM(X8:X23) -> 0
F25: IMPORTE DEVOLUCIÓN DIAS DEVENGADOS PAGA EXTRA 2012 (FEBRERO 2016) | H25: =44*((O4*(X32+X24+R30)+O5*(X32+X24+R30))/183) -> 0 | P25: Importe trienios antes 1/7/12
P26: F | S26: 17.66 | T26: 51.226 | U26: =O8*(($O$4*S26)+($O$5*T26)) -> 0 | V26: Sueldo base + comp cat + comp conv. F-T
P27: 47.11 | R27: =$O$6*(O8+P12)*P27*C18 -> 0 | S27: 31.6 | T27: 91.651 | U27: =O9*(($O$4*S27)+($O$5*T27)) -> 0 | V27: 1979.47 | W27: 1781.523 | X27: =$O$4*O8*V27+$O$5*O8*W27 -> 0
P28: 32.63 | R28: =$O$6*P17*P28*C18 -> 0 | S28: 16.58 | T28: 48.082 | U28: 0 | V28: 1722.34 | W28: 1550.106 | X28: =$O$4*P12*V28+$O$5*P12*W28 -> 0
P29: 27.96 | R29: =$O$6*(P19+P22)*P29*C18 -> 0 | S29: 12.73 | T29: 36.93 | U29: 0 | V29: 1346.02 | W29: 1211.418 | X29: =$O$4*P17*V29+$O$5*P17*W29 -> 0
R30: =SUM(R27:R29) -> 0 | S30: 11.5 | T30: 33.352 | U30: 0 | V30: 1107.99 | W30: 997.191 | X30: =$O$4*P19*V30+$O$5*P19*W30 -> 0
P31: Dif. trienios tras recortes (a multip.x nº tr) | S31: 10.74 | T31: 31.159 | U31: 0 | V31: 1019.35 | W31: 917.415 | X31: =$O$4*P22*V31+$O$5*P22*W31 -> 0
P32: 2.47 | Q32: 7.181 | R32: =42*($O$4*(O8+P12)*P32+$O$5*(O8+P12)*Q32) -> 0 | S32: 11.96 | T32: 34.697 | U32: 0 | X32: =SUM(X27:X31) -> 0
P33: 1.71 | Q33: 4.973 | R33: =42*($O$4*P17*P33+$O$5*P17*Q33) -> 0 | S33: 11.49 | T33: 33.331 | U33: 0
P34: 1.47 | Q34: 4.266 | R34: =42*($O$4*(P19+P22)*P34+$O$5*(P19+P22)*Q34) -> 0 | S34: 11.96 | T34: 34.697 | U34: 0 | V34: Difª sueldo base + comp cat + comp conv. F-T
R35: =SUM(R32:R34) -> 0 | S35: 11.26 | T35: 32.67 | U35: 0 | V35: 104.17 | W35: 302.117 | X35: =$O$4*O8*V35+$O$5*O8*W35 -> 0
S36: 9.47 | T36: 27.48 | U36: 0 | V36: 90.63 | W36: 262.864 | X36: =$O$4*P12*V36+$O$5*P12*W36 -> 0
S37: 9.22 | T37: 26.755 | U37: 0 | V37: 70.82 | W37: 205.422 | X37: =$O$4*P17*V37+$O$5*P17*W37 -> 0
S38: 11.06 | T38: 32.082 | U38: 0 | V38: 58.3 | W38: 169.099 | X38: =$O$4*P19*V38+$O$5*P19*W38 -> 0
S39: 8.83 | T39: 25.607 | U39: 0 | V39: 53.64 | W39: 155.575 | X39: =$O$4*P22*V39+$O$5*P22*W39 -> 0
S40: 8.62 | T40: 25.015 | U40: 0 | X40: =SUM(X35:X39) -> 0
S41: 7.85 | T41: 22.78 | U41: 0
U42: =SUM(U26:U41) -> 0 | V42: Complem. Convenio F-T
V43: 402.88 | W43: 362.592 | X43: =$O$4*O8*V43+$O$5*O8*W43 -> 0
V44: 368.77 | W44: 331.893 | X44: =$O$4*P12*V44+$O$5*P12*W44 -> 0
V45: 253.25 | W45: 227.925 | X45: =$O$4*P17*V45+$O$5*P17*W45 -> 0
V46: 209.83 | W46: 188.847 | X46: =$O$4*P19*V46+$O$5*P19*W46 -> 0
V47: 193.29 | W47: 173.961 | X47: =$O$4*P22*V47+$O$5*P22*W47 -> 0
X48: =SUM(X43:X47) -> 0

Sheet Hoja2 (hidden)
B1: PERSONAL FIJO | F1: PERSONAL TEMPORAL | L1: PERSONAL FIJO | O1: PERSONAL TEMPORAL
A2: JORNADA A TURNOS | B2: DIFª MENSUAL | C2: DIFª 2010 | D2: DIFª 2011 Y SS | E2: ACUMULADO 2010-2016 | F2: DIFª 1/6/10 | H2: DIFª 1/6/12 Y SS | I2: ACUMULADO 2010-2016 | K2: TRIENIOS | L2: 2010 ANTES DE RECORTES | M2: 2010 DESPUES DE RECORTES | N2: DIFERENCIA | O2: RECORTES REDUCC. 10% | P2: DIFª 1/6/10 | Q2: DIFª 1/6/12 Y SS
A3: I - II | B3: 13.05 | C3: =B3*7 -> 91.35 | D3: =B3*12 -> 156.6 | E3: =C3+(5*D3) -> 874.35 | F3: 13.05 | H3: 24.81 | I3: =25*F3+42*H3 -> 1368.27 | K3: I - II | L3: 49.58 | M3: 47.11 | N3: =L3-M3 -> 2.47 | O3: =M3-(M3*10/100) -> 42.399 | P3: 2.47 | Q3: =L3-O3 -> 7.181
A4: III - IV - V | B4: 8.44 | C4: =B4*7 -> 59.08 | D4: =B4*12 -> 101.28 | E4: =C4+(5*D4) -> 565.48 | F4: 8.44 | H4: 16.05 | I4: =25*F4+42*H4 -> 885.1 | K4: III | L4: 34.34 | M4: 32.63 | N4: =L4-M4 -> 1.71 | O4: =M4-(M4*10/100) -> 29.367 | P4: 1.71 | Q4: =L4-(M4-(M4*10/100)) -> 4.973
K5: IV - V | L5: 29.43 | M5: 27.96 | N5: =L5-M5 -> 1.47 | O5: =M5-(M5*10/100) -> 25.164 | P5: 1.47 | Q5: =L5-(M5-(M5*10/100)) -> 4.266
A6: JORN. TARDE / PARTIDA | B6: DIFª MENSUAL | C6: TOTAL 2010 | D6: DIFª 2011 Y SS | E6: ACUMULADO 2010-2016 | F6: DIFª 1/6/10 | H6: DIFª 1/6/12 Y SS | I6: ACUMULADO 2010-2016
A7: I - II | B7: 3.91 | C7: =B7*7 -> 27.37 | D7: =B7*12 -> 46.92 | E7: =C7+(5*D7) -> 261.97 | F7: 3.91 | H7: 7.45 | I7: =25*F7+42*H7 -> 410.65
A8: III - IV - V | B8: 2.53 | C8: =B8*7 -> 17.71 | D8: =B8*12 -> 30.36 | E8: =C8+(5*D8) -> 169.51 | F8: 2.53 | H8: 4.82 | I8: =25*F8+42*H8 -> 265.69
L9: PERSONAL FIJO | O9: PERSONAL TEMPORAL (-10%)
A10: TRABAJOS NOCTURNOS | B10: DIFª MENSUAL | F10: DIFª 1/6/10 | H10: DIFª 1/6/12 Y SS | L10: SUELDO BASE | M10: COMPLEM. CATEGORÍA | N10: COMPLEM. CONVENIO | O10: SUELDO BASE | P10: COMPLEM. CATEGORÍA | Q10: COMPLEM. CONVENIO
A11: I - II | B11: 0.26 | F11: 0.26 | H11: 0.505 | K11: I | L11: 1103.24 | M11: 473.35 | N11: 402.88 | O11: =L11-(L11*10/100) -> 992.916 | P11: =M11-(M11*10/100) -> 426.015 | Q11: 362.592
A12: III - IV - V | B12: 0.21 | F12: 0.21 | H12: 0.406 | K12: II | L12: 936.32 | M12: 417.25 | N12: 368.77 | O12: =L12-(L12*10/100) -> 842.688 | P12: 375.525 | Q12: 331.893
K13: III | L13: 697.98 | M13: 394.79 | N13: 253.25 | O13: =L13-(L13*10/100) -> 628.182 | P13: 355.311 | Q13: 227.925
A14: DOMINGOS Y FESTIVOS | B14: DIFª MENSUAL | F14: DIFª 1/6/10 | H14: DIFª 1/6/12 Y SS | K14: IV | L14: 570.72 | M14: 327.44 | N14: 209.83 | O14: =L14-(L14*10/100) -> 513.648 | P14: 294.696 | Q14: 188.847
A15: I - II | B15: 1.6 | F15: 1.6 | H15: 3.04 | K15: V | L15: 521.05 | M15: 305.01 | N15: 193.29 | O15: =L15-(L15*10/100) -> 468.945 | P15: 274.509 | Q15: 173.961
A16: III - IV - V | B16: 1.28 | F16: 1.38 | H16: 2.44 | L16: PERSONAL FIJO | O16: PERSONAL TEMPORAL -10% | S16: PERS. FIJO | T16: PERS. TEMP. | U16: PERS. FIJO | V16: PERS. TEMP.-10%
L17: DIFERENCIA MENSUAL CONCEPTOS TRAS RECORTES | U17: IMPORTE MENSUAL TRAS RECORTE
A18: PLUSES PENOSIDAD, … | B18: DIFª MENSUAL | C18: TOTAL 2010 | D18: DIFª 2011 Y SS | E18: ACUMULADO 2010-2016 | F18: DIFª 1/6/10 | H18: DIFª 1/7/12 | I18: ACUMULADO 2010-2016 | L18: SUELDO BASE | M18: COMPLEM. CATEGORÍA | N18: COMPLEM. CONVENIO | O18: SUELDO BASE | P18: COMPLEM. CATEGORÍA | Q18: COMPLEM. CONVENIO | S18: COMPLEM. DE PUESTO | T18: COMPLEM. DE PUESTO | U18: COMPLEM. DE PUESTO | V18: COMPLEM. DE PUESTO
A19: I | B19: 11.61 | C19: =B19*7 -> 81.27 | D19: =B19*12 -> 139.32 | E19: =C19+(5*D19) -> 777.87 | F19: 11.61 | H19: 33.68 | I19: =25*F19+42*H19 -> 1704.81 | K19: I | L19: 58.06 | M19: 24.91 | N19: 21.2 | O19: 168.384 | P19: 72.245 | Q19: 61.488 | R19: Psicólogo/a, Pedagogo/a… | S19: 17.66 | T19: 51.226 | U19: 335.66 | V19: =U19-(U19*10/100) -> 302.094
A20: II | B20: 9.85 | C20: =B20*7 -> 68.95 | D20: =B20*12 -> 118.2 | E20: =C20+(5*D20) -> 659.95 | F20: 9.85 | H20: 28.58 | I20: =25*F20+42*H20 -> 1446.61 | K20: II | L20: 49.27 | M20: 21.96 | N20: 19.4 | O20: 142.902 | P20: 63.685 | Q20: 56.277 | R20: Director/a | S20: 31.6 | T20: 91.651 | U20: 600.51 | V20: =U20-(U20*10/100) -> 540.459
A21: III | B21: 7.35 | C21: =B21*7 -> 51.45 | D21: =B21*12 -> 88.2 | E21: =C21+(5*D21) -> 492.45 | F21: 7.35 | H21: 21.31 | I21: =25*F21+42*H21 -> 1078.77 | K21: III | L21: 36.73 | M21: 20.77 | N21: 13.32 | O21: 106.528 | P21: 60.249 | Q21: 38.645 | R21: Fisioterapeuta | S21: 16.58 | T21: 48.082 | U21: 315.02 | V21: 283.518
A22: IV | B22: 6.01 | C22: =B22*7 -> 42.07 | D22: =B22*12 -> 72.12 | E22: =C22+(5*D22) -> 402.67 | F22: 6.01 | H22: 17.42 | I22: =25*F22+42*H22 -> 881.89 | K22: IV | L22: 30.03 | M22: 17.23 | N22: 11.04 | O22: 87.102 | P22: 49.974 | Q22: 32.023 | R22: Educador/a y Trabaj…. | S22: 12.73 | T22: 36.93 | U22: 242 | V22: 217.8
A23: V | B23: 5.48 | C23: =B23*7 -> 38.36 | D23: =B23*12 -> 65.76 | E23: =C23+(5*D23) -> 367.16 | F23: 5.48 | H23: 15.91 | I23: =25*F23+42*H23 -> 805.22 | K23: V | L23: 27.42 | M23: 16.05 | N23: 10.17 | O23: 79.525 | P23: 46.551 | Q23: 29.499 | R23: Educador/a infantil | S23: 11.5 | T23: 33.352 | U23: 218.52 | V23: 196.668
R24: Monitor/a de Residencias Esc… | S24: 10.74 | T24: 31.159 | U24: 204.19 | V24: 183.771
R25: Monitor/a de Educación Especial | S25: 11.96 | T25: 34.697 | U25: 227.37 | V25: 204.633
L26: PERSONAL FIJO | R26: Técnico/a Superior Educación Inf… | S26: 11.49 | T26: 33.331 | U26: 218.41 | V26: 196.569
L27: SUELDO BASE | M27: C. CATEGORÍA | N27: C. CONVENIO | O27: SUMA | R27: Monitor/a Centros de Menores | S27: 11.96 | T27: 34.697 | U27: 227.37 | V27: 204.633
K28: I | L28: 1103.24 | M28: 473.35 | N28: 402.88 | O28: =SUM(L28:N28) -> 1979.47 | R28: Oficial 1ª Cocinero | S28: 11.26 | T28: 32.67 | U28: 214.1 | V28: 192.69
K29: II | L29: 936.32 | M29: 417.25 | N29: 368.77 | O29: =SUM(L29:N29) -> 1722.34 | R29: Oficial 2ª Oficios | S29: 9.47 | T29: 27.48 | U29: 180.1 | V29: 162.09
K30: III | L30: 697.98 | M30: 394.79 | N30: 253.25 | O30: =SUM(L30:N30) -> 1346.02 | R30: Cocinero/a | S30: 9.22 | T30: 26.755 | U30: 175.35 | V30: 157.815
K31: IV | L31: 570.72 | M31: 327.44 | N31: 209.83 | O31: =SUM(L31:N31) -> 1107.99 | R31: Auxiliar Administrativo (ptos L) | S31: 11.06 | T31: 32.082 | U31: 210.22 | V31: 189.198
K32: V | L32: 521.05 | M32: 305.01 | N32: 193.29 | O32: =SUM(L32:N32) -> 1019.35 | R32: Vigilante | S32: 8.83 | T32: 25.607 | U32: 167.77 | V32: 150.993
R33: Ayudante de Cocina y PSD | S33: 8.62 | T33: 25.015 | U33: 163.95 | V33: 147.555
L34: PERSONAL TEMPORAL (-10%) | O34: SUMA | R34: Ordenanza, limpiador/a | S34: 7.85 | T34: 22.78 | U34: 149.3 | V34: 134.37
K35: I | L35: 992.916 | M35: 426.015 | N35: 362.592 | O35: =SUM(L35:N35) -> 1781.523
K36: II | L36: 842.688 | M36: 375.525 | N36: 331.893 | O36: =SUM(L36:N36) -> 1550.106
K37: III | L37: 628.182 | M37: 355.311 | N37: 227.925 | O37: =SUM(L37:N37) -> 1211.418
K38: IV | L38: 513.648 | M38: 294.696 | N38: 188.847 | O38: =SUM(L38:N38) -> 997.191
K39: V | L39: 468.945 | M39: 274.509 | N39: 173.961 | O39: =SUM(L39:N39) -> 917.415
L41: DIFª TRAS RECORTES P.FIJO
K42: I | L42: 58.06 | M42: 24.91 | N42: 21.2 | O42: =SUM(L42:N42) -> 104.17
K43: II | L43: 49.27 | M43: 21.96 | N43: 19.4 | O43: =SUM(L43:N43) -> 90.63
K44: III | L44: 36.73 | M44: 20.77 | N44: 13.32 | O44: =SUM(L44:N44) -> 70.82
K45: IV | L45: 30.03 | M45: 17.23 | N45: 11.04 | O45: =SUM(L45:N45) -> 58.3
K46: V | L46: 27.42 | M46: 16.05 | N46: 10.17 | O46: =SUM(L46:N46) -> 53.64
L48: DIFª TRAS RECORTES P.TEMP.-10%
K49: I | L49: 168.384 | M49: 72.245 | N49: 61.488 | O49: =SUM(L49:N49) -> 302.117
K50: II | L50: 142.902 | M50: 63.685 | N50: 56.277 | O50: =SUM(L50:N50) -> 262.864
K51: III | L51: 106.528 | M51: 60.249 | N51: 38.645 | O51: =SUM(L51:N51) -> 205.422
K52: IV | L52: 87.102 | M52: 49.974 | N52: 32.023 | O52: =SUM(L52:N52) -> 169.099
K53: V | L53: 79.525 | M53: 46.551 | N53: 29.499 | O53: =SUM(L53:N53) -> 155.575
